[Event "28th CRO-chT 1B-Men 2019"]
[Site "Mali Losinj"]
[Date "2019.10.04"]
[Round "7.10"]
[White "Bukal, Vladimir Jr."]
[Black "Rubil, Marko"]
[Result "1-0"]
[ECO "A45"]
[WhiteElo "2390"]
[BlackElo "2290"]
[Annotator "NA"]
[PlyCount "81"]
[EventDate "2019.09.28"]
[EventType "team-tourn"]
[EventCountry "CRO"]
[SourceTitle "playchess.com"]
[Source "ChessBase"]
[SourceQuality "1"]
[TimeControl "40/5400+30:1800+30"]

1. d4 {[%emt 0:00:30]} Nf6 {[%emt 0:01:30]} 2. Bf4 {[%emt 0:00:00]} g6 {[%emt 0:01:30]} 3. Nc3 {[%emt 0:00:00]} d5 {[%emt 0:01:30]} 4. e3 {[%emt 0:00:30]} Bg7 {[%emt 0:00:30]} 5. h4 {[%emt 0:00:30]} h6 {[%emt 0:05:30]} 6. Be2 {[%emt 0:05:30]} c6 {[%emt 0:03:30]} 7. Nf3 {[%emt 0:01:30]} Qb6 {[%emt 0:03:30]} 8. a3 {[%emt 0:04:30]} Bf5 {[%emt 0:04:30]} 9. Qd2 {[%emt 0:05:30]} Nbd7 {[%emt 0:10:30]} 10. O-O-O {[%emt 0:04:30]} Ng4 {[%emt 0:14:30]} 11. Qe1 {[%emt 0:13:30]} O-O {[%emt 0:10:30]} 12. Nh2 {[%emt 0:04:30]} Nxh2 {[%emt 0:02:30]} 13. Bxh2 {[%emt 0:00:30]} e5 {[%emt 0:01:30]} 14. g4 {[%emt 0:03:30]} Be6 {[%emt 0:05:30]} 15. f4 {[%emt 0:01:30]} exd4 {[%emt 0:07:30]} 16. exd4 {[%emt 0:01:30]} f5 {[%emt 0:06:47]} 17. h5 {[%emt 0:08:30]} Rae8 {[%emt 0:01:12]} 18. g5 {[%emt 0:07:30]} hxg5 {[%emt 0:08:58]} 19. hxg6 {[%emt 0:12:30]} g4 {[%emt 0:00:21]} 20. Qh4 {[%emt 0:04:02]} Rf6 {[%emt 0:00:09]} 21. Qh7+ {[%emt 0:00:48]} Kf8 {[%emt 0:00:01]} 22. Bg3 {[%emt 0:00:31]} Bg8 {[%emt 0:00:47]} 23. Qh5 {[%emt 0:00:13]} c5 {[%emt 0:03:10]} 24. Bb5 {[%emt 0:09:18]} Re3 {[%emt 0:03:51]} 25. Bxd7 {[%emt 0:01:44]} cxd4 {[%emt 0:01:03]} 26. Nb5 {[%emt 0:04:35]} Rxg3 {[%emt 0:00:21]} 27. Rhe1 {[%emt 0:00:44]} Re3 {[%emt 0:01:01]} 28. Nxd4 {[%emt 0:00:21]} Re4 {[%emt 0:00:00]} 29. Rxe4 {[%emt 0:04:05]} dxe4 {[%emt 0:00:28]} 30. Bxf5 {[%emt 0:00:51]} e3 {[%emt 0:01:13]} 31. Qxg4 {[%emt 0:00:44]} Rd6 {[%emt 0:00:48]} 32. c3 {[%emt 0:00:34]} Bc4 {[%emt 0:00:02]} 33. Bd3 {[%emt 0:00:20]} Rxd4 {[%emt 0:00:39]} 34. Qf5+ {[%emt 0:00:34]} Bf6 {[%emt 0:00:11]} 35. Qc8+ {[%emt 0:00:30]} Kg7 {[%emt 0:00:39]} 36. Bxc4 {[%emt 0:00:16]} Rxd1+ {[%emt 0:01:01]} 37. Kxd1 {[%emt 0:00:01]} Qd6+ {[%emt 0:00:41]} 38. Kc2 {[%emt 0:00:13]} Qxf4 {[%emt 0:00:34]} 39. Qg8+ {[%emt 0:00:58]} Kh6 {[%emt 0:00:01]} 40. Qh7+ {[%emt 0:00:52]} Kg5 {[%emt 0:00:00]} 41. g7 {[%emt 0:00:46]} 1-0

[Event "28th CRO-chT 1B-Men 2019"]
[Site "Mali Losinj"]
[Date "2019.10.04"]
[Round "7.11"]
[White "Martic, Zlatko"]
[Black "Ivekovic, Zvonimir"]
[Result "1/2-1/2"]
[ECO "B94"]
[WhiteElo "2299"]
[BlackElo "2405"]
[Annotator "NA"]
[PlyCount "122"]
[EventDate "2019.09.28"]
[EventType "team-tourn"]
[EventCountry "CRO"]
[SourceTitle "playchess.com"]
[Source "ChessBase"]
[SourceQuality "1"]
[TimeControl "40/5400+30:1800+30"]

1. e4 {[%emt 0:00:30]} c5 {[%emt 0:00:30]} 2. Nf3 {[%emt 0:00:30]} d6 {[%emt 0:00:00]} 3. d4 {[%emt 0:00:30]} cxd4 {[%emt 0:00:00]} 4. Nxd4 {[%emt 0:00:30]} Nf6 {[%emt 0:00:00]} 5. Nc3 {[%emt 0:00:00]} a6 {[%emt 0:00:00]} 6. Bg5 {[%emt 0:01:00]} Nbd7 {[%emt 0:00:00]} 7. f4 {[%emt 0:02:30]} Qc7 {[%emt 0:00:00]} 8. Qe2 {[%emt 0:04:30]} e5 {[%emt 0:00:30]} 9. Nf3 {[%emt 0:02:30]} h6 {[%emt 0:10:30]} 10. Bxf6 {[%emt 0:08:30]} Nxf6 {[%emt 0:00:30]} 11. Nd5 {[%emt 0:12:30]} Nxd5 {[%emt 0:02:30]} 12. exd5 {[%emt 0:00:30]} Qa5+ {[%emt 0:00:30]} 13. c3 {[%emt 0:08:30]} Qxd5 {[%emt 0:00:00]} 14. Rd1 {[%emt 0:00:00]} Qxa2 {[%emt 0:18:00]} 15. fxe5 {[%emt 0:00:00]} d5 {[%emt 0:00:00]} 16. Nd4 {[%emt 0:01:30]} Bc5 {[%emt 0:03:00]} 17. g3 {[%emt 0:01:30]} O-O {[%emt 0:02:30]} 18. Bg2 {[%emt 0:00:30]} Bd7 {[%emt 0:05:30]} 19. b4 {[%emt 0:01:30]} Qxe2+ {[%emt 0:00:30]} 20. Nxe2 {[%emt 0:00:30]} Bb6 {[%emt 0:01:30]} 21. Bxd5 {[%emt 0:00:30]} Rae8 {[%emt 0:01:30]} 22. Bxb7 {[%emt 0:01:30]} Bb5 {[%emt 0:00:30]} 23. Bd5 {[%emt 0:01:30]} Rxe5 {[%emt 0:01:30]} 24. c4 {[%emt 0:00:30]} Rfe8 {[%emt 0:00:30]} 25. Rd2 {[%emt 0:00:00]} Be3 {[%emt 0:01:30]} 26. Ra2 {[%emt 0:06:00]} Rxd5 {[%emt 0:03:30]} 27. cxd5 {[%emt 0:01:30]} Bc4 {[%emt 0:00:00]} 28. Rc2 {[%emt 0:02:30]} Bxd5 {[%emt 0:00:00]} 29. Rf1 {[%emt 0:00:30]} Bg2 {[%emt 0:00:30]} 30. Ra2 {[%emt 0:03:30]} Bxf1 {[%emt 0:00:00]} 31. Kxf1 {[%emt 0:00:30]} Re6 {[%emt 0:00:00]} 32. Nc3 {[%emt 0:00:30]} Rd6 {[%emt 0:05:30]} 33. b5 {[%emt 0:05:30]} Rd3 {[%emt 0:02:30]} 34. Rc2 {[%emt 0:01:30]} Rd6 {[%emt 0:04:30]} 35. bxa6 {[%emt 0:05:30]} Rxa6 {[%emt 0:00:30]} 36. Nd5 {[%emt 0:01:30]} Bd4 {[%emt 0:02:30]} 37. Kg2 {[%emt 0:01:30]} Ra5 {[%emt 0:04:30]} 38. Ne7+ {[%emt 0:01:30]} Kf8 {[%emt 0:00:30]} 39. Nc6 {[%emt 0:00:30]} Ra4 {[%emt 0:00:00]} 40. Nxd4 {[%emt 0:00:00]} Rxd4 {[%emt 0:00:00]} 41. Kf3 {[%emt 0:02:00]} h5 {[%emt 0:03:30]} 42. h4 {[%emt 0:00:30]} Ke7 {[%emt 0:03:30]} 43. Rc5 {[%emt 0:00:30]} g6 {[%emt 0:00:30]} 44. Ra5 {[%emt 0:00:30]} Ke6 {[%emt 0:01:30]} 45. Ra6+ {[%emt 0:01:30]} Ke5 {[%emt 0:01:30]} 46. Ra7 {[%emt 0:01:30]} Rd3+ {[%emt 0:00:30]} 47. Kf2 {[%emt 0:00:30]} f6 {[%emt 0:00:30]} 48. Kg2 {[%emt 0:08:30]} Ke4 {[%emt 0:05:30]} 49. Ra4+ {[%emt 0:05:30]} Rd4 {[%emt 0:04:30]} 50. Ra2 {[%emt 0:00:30]} Ke3 {[%emt 0:21:30]} 51. Ra6 {[%emt 0:02:30]} Rd2+ {[%emt 0:00:30]} 52. Kh3 {[%emt 0:00:30]} Kf2 {[%emt 0:19:42]} 53. Kh2 {[%emt 0:03:30]} Kf1+ {[%emt 0:00:16]} 54. Kh3 {[%emt 0:06:30]} Kg1 {[%emt 0:03:30]} 55. Ra1+ {[%emt 0:00:30]} Kf2 {[%emt 0:00:05]} 56. Kh2 {[%emt 0:05:30]} g5 {[%emt 0:01:03]} 57. hxg5 {[%emt 0:02:30]} fxg5 {[%emt 0:00:01]} 58. Kh3 {[%emt 0:02:19]} Rd3 {[%emt 0:01:20]} 59. Ra2+ {[%emt 0:00:35]} Kf3 {[%emt 0:00:08]} 60. Ra5 {[%emt 0:01:57]} g4+ {[%emt 0:00:30]} 61. Kh4 {[%emt 0:00:02]} Re3 {[%emt 0:00:47]} 1/2-1/2

[Event "28th CRO-chT 1B-Men 2019"]
[Site "Mali Losinj"]
[Date "2019.10.04"]
[Round "7.12"]
[White "Bozinovic, Bogdan"]
[Black "Matanovic, Luka"]
[Result "0-1"]
[ECO "D16"]
[WhiteElo "2212"]
[BlackElo "2245"]
[Annotator "NA"]
[PlyCount "76"]
[EventDate "2019.09.28"]
[EventType "team-tourn"]
[EventCountry "CRO"]
[SourceTitle "playchess.com"]
[Source "ChessBase"]
[SourceQuality "1"]
[TimeControl "40/5400+30:1800+30"]

1. d4 {[%emt 0:02:30]} d5 {[%emt 0:00:30]} 2. c4 {[%emt 0:00:30]} c6 {[%emt 0:00:30]} 3. Nf3 {[%emt 0:00:30]} Nf6 {[%emt 0:00:30]} 4. Nc3 {[%emt 0:01:30]} dxc4 {[%emt 0:00:30]} 5. a4 {[%emt 0:00:30]} Na6 {[%emt 0:02:30]} 6. Ne5 {[%emt 0:07:30]} Ng4 {[%emt 0:02:30]} 7. Nxc4 {[%emt 0:02:30]} e5 {[%emt 0:01:30]} 8. Nxe5 {[%emt 0:21:30]} Nxe5 {[%emt 0:00:30]} 9. dxe5 {[%emt 0:00:30]} Qxd1+ {[%emt 0:00:30]} 10. Kxd1 {[%emt 0:01:30]} Be6 {[%emt 0:04:30]} 11. f3 {[%emt 0:08:30]} O-O-O+ {[%emt 0:20:30]} 12. Ke1 {[%emt 0:04:30]} Nb4 {[%emt 0:10:30]} 13. Kf2 {[%emt 0:00:30]} Bc5+ {[%emt 0:05:30]} 14. Kg3 {[%emt 0:01:30]} Nc2 {[%emt 0:01:30]} 15. Rb1 {[%emt 0:01:30]} Bd4 {[%emt 0:08:30]} 16. e4 {[%emt 0:09:30]} Bxc3 {[%emt 0:14:30]} 17. bxc3 {[%emt 0:00:30]} Rd1 {[%emt 0:00:30]} 18. Kf2 {[%emt 0:11:30]} Rhd8 {[%emt 0:05:46]} 19. g3 {[%emt 0:01:30]} Kc7 {[%emt 0:02:37]} 20. Bg2 {[%emt 0:01:43]} R8d2+ {[%emt 0:04:42]} 21. Bxd2 {[%emt 0:00:21]} Rxd2+ {[%emt 0:00:06]} 22. Kg1 {[%emt 0:06:42]} Ne3 {[%emt 0:00:19]} 23. Bf1 {[%emt 0:01:20]} Bc4 {[%emt 0:00:38]} 24. Bh3 {[%emt 0:00:40]} g5 {[%emt 0:02:00]} 25. Re1 {[%emt 0:01:42]} Nc2 {[%emt 0:00:20]} 26. Rc1 {[%emt 0:00:21]} h5 {[%emt 0:00:49]} 27. g4 {[%emt 0:02:24]} h4 {[%emt 0:00:32]} 28. Bg2 {[%emt 0:05:00]} Ne3 {[%emt 0:00:19]} 29. Bh3 {[%emt 0:00:13]} a5 {[%emt 0:00:12]} 30. Re1 {[%emt 0:03:38]} Nc2 {[%emt 0:00:32]} 31. Bf1 {[%emt 0:01:49]} Nxe1 {[%emt 0:06:41]} 32. Bxc4 {[%emt 0:01:00]} Nxf3+ {[%emt 0:00:19]} 33. Kf1 {[%emt 0:00:04]} Nxh2+ {[%emt 0:01:08]} 34. Ke1 {[%emt 0:00:41]} Nf3+ {[%emt 0:00:06]} 35. Kf1 {[%emt 0:00:02]} Rc2 {[%emt 0:01:26]} 36. Bxf7 {[%emt 0:01:06]} Nxe5 {[%emt 0:00:42]} 37. Be6 {[%emt 0:00:31]} Kd6 {[%emt 0:01:00]} 38. Bf5 {[%emt 0:00:37]} Rc1+ {[%emt 0:00:46]} 0-1

[Event "28th CRO-chT 1B-Men 2019"]
[Site "Mali Losinj"]
[Date "2019.10.04"]
[Round "7.13"]
[White "Medvegy, Zoltan"]
[Black "Djukic, Nikola"]
[Result "1/2-1/2"]
[ECO "A36"]
[WhiteElo "2539"]
[BlackElo "2517"]
[Annotator "ChessBase"]
[PlyCount "110"]
[EventDate "2019.09.28"]
[EventType "team-tourn"]
[EventCountry "CRO"]
[SourceTitle "playchess.com"]
[Source "ChessBase"]
[SourceQuality "1"]
[TimeControl "40/5400+30:1800+30"]

1. c4 {[%emt 0:00:30]} c5 {[%emt 0:01:30]} 2. g3 {[%emt 0:00:00]} Nc6 {[%emt 0:00:30]} 3. Bg2 {[%emt 0:00:00]} g6 {[%emt 0:00:00]} 4. Nc3 {[%emt 0:00:30]} Bg7 {[%emt 0:00:00]} 5. a3 {[%emt 0:01:30]} d6 {[%emt 0:01:30]} 6. Rb1 {[%emt 0:01:30]} a5 {[%emt 0:00:30]} 7. d3 {[%emt 0:02:30]} e5 {[%emt 0:00:30]} 8. e3 {[%emt 0:02:30]} Nge7 {[%emt 0:00:30]} 9. Nge2 {[%emt 0:00:30]} O-O {[%emt 0:00:30]} 10. O-O {[%emt 0:00:30]} Rb8 {[%emt 0:00:00]} 11. Bd2 {[%emt 0:04:30]} Bf5 {[%emt 0:00:00]} 12. e4 {[%emt 0:09:30]} Bd7 {[%emt 0:01:30]} 13. Nb5 {[%emt 0:01:30]} Be6 {[%emt 0:01:30]} 14. b4 {[%emt 0:01:30]} axb4 {[%emt 0:00:30]} 15. axb4 {[%emt 0:00:30]} cxb4 {[%emt 0:10:30]} 16. Bxb4 {[%emt 0:08:30]} Nxb4 {[%emt 0:01:30]} 17. Rxb4 {[%emt 0:00:00]} f5 {[%emt 0:00:30]} 18. exf5 {[%emt 0:01:00]} gxf5 {[%emt 0:05:30]} 19. Nec3 {[%emt 0:01:30]} d5 {[%emt 0:04:30]} 20. cxd5 {[%emt 0:17:30]} Nxd5 {[%emt 0:00:00]} 21. Nxd5 {[%emt 0:00:30]} Bxd5 {[%emt 0:00:00]} 22. Bxd5+ {[%emt 0:06:30]} Qxd5 {[%emt 0:00:30]} 23. Nc3 {[%emt 0:00:30]} Qf7 {[%emt 0:02:30]} 24. Qf3 {[%emt 0:02:30]} Rfd8 {[%emt 0:15:30]} 25. Rb5 {[%emt 0:13:30]} Qd7 {[%emt 0:04:30]} 26. Qd5+ {[%emt 0:00:30]} Qf7 {[%emt 0:07:30]} 27. Qf3 {[%emt 0:02:30]} Qd7 {[%emt 0:00:00]} 28. Qd5+ {[%emt 0:00:30]} Qf7 {[%emt 0:00:00]} 29. Qxf7+ {[%emt 0:05:45]} Kxf7 {[%emt 0:00:30]} 30. Nd5 {[%emt 0:00:35]} Ke6 {[%emt 0:09:30]} 31. Ne3 {[%emt 0:01:02]} f4 {[%emt 0:01:30]} 32. Rb6+ {[%emt 0:02:38]} Kf7 {[%emt 0:00:30]} 33. Nf5 {[%emt 0:04:07]} Rxd3 {[%emt 0:00:30]} 34. Nxg7 {[%emt 0:02:21]} Kxg7 {[%emt 0:00:00]} 35. gxf4 {[%emt 0:02:09]} exf4 {[%emt 0:00:00]} 36. Rfb1 {[%emt 0:00:07]} Rd7 {[%emt 0:00:30]} 37. Kg2 {[%emt 0:00:18]} Rf7 {[%emt 0:03:30]} 38. Kf3 {[%emt 0:00:28]} Kf8 {[%emt 0:00:30]} 39. h4 {[%emt 0:01:21]} Ke8 {[%emt 0:03:30]} 40. Kg4 {[%emt 0:00:00]} f3 {[%emt 0:00:00]} 41. h5 {[%emt 0:10:39]} Kd8 {[%emt 0:05:00]} 42. Kg5 {[%emt 0:02:30]} Kc8 {[%emt 0:02:30]} 43. Rc1+ {[%emt 0:00:30]} Kd7 {[%emt 0:01:30]} 44. Kh6 {[%emt 0:01:30]} Kd8 {[%emt 0:01:30]} 45. Rd1+ {[%emt 0:11:15]} Kc7 {[%emt 0:03:30]} 46. Rdb1 {[%emt 0:00:15]} Rd7 {[%emt 0:04:30]} 47. R1b3 {[%emt 0:02:12]} Rf7 {[%emt 0:02:30]} 48. R3b5 {[%emt 0:01:21]} Kc8 {[%emt 0:01:30]} 49. Rc5+ {[%emt 0:00:58]} Kd8 {[%emt 0:02:30]} 50. Rg5 {[%emt 0:02:58]} Rc8 {[%emt 0:02:30]} 51. Rg7 {[%emt 0:05:34]} Rcc7 {[%emt 0:03:30]} 52. Rg8+ {[%emt 0:00:20]} Ke7 {[%emt 0:02:30]} 53. Rb8 {[%emt 0:00:34]} Rf6+ {[%emt 0:01:30]} 54. Rxf6 {[%emt 0:00:09]} Kxf6 {[%emt 0:00:30]} 55. Rxb7 {[%emt 0:00:31]} Rxb7 {[%emt 0:00:00]} 1/2-1/2

[Event "28th CRO-chT 1B-Men 2019"]
[Site "Mali Losinj"]
[Date "2019.10.04"]
[Round "7.14"]
[White "Bogut, Zeljko"]
[Black "Rezan, Sasa"]
[Result "1-0"]
[ECO "B40"]
[WhiteElo "2386"]
[BlackElo "2432"]
[Annotator "NA"]
[PlyCount "49"]
[EventDate "2019.09.28"]
[EventType "team-tourn"]
[EventCountry "CRO"]
[SourceTitle "playchess.com"]
[Source "ChessBase"]
[SourceQuality "1"]
[TimeControl "40/5400+30:1800+30"]

1. e4 {[%emt 0:00:30]} c5 {[%emt 0:00:30]} 2. Nf3 {[%emt 0:00:30]} e6 {[%emt 0:00:30]} 3. c4 {[%emt 0:01:30]} Nc6 {[%emt 0:00:30]} 4. Nc3 {[%emt 0:00:30]} Nd4 {[%emt 0:00:30]} 5. d3 {[%emt 0:03:30]} Ne7 {[%emt 0:05:30]} 6. Nxd4 {[%emt 0:06:30]} cxd4 {[%emt 0:00:30]} 7. Ne2 {[%emt 0:01:30]} Nc6 {[%emt 0:02:30]} 8. a3 {[%emt 0:01:30]} a5 {[%emt 0:12:30]} 9. g3 {[%emt 0:02:30]} a4 {[%emt 0:00:30]} 10. Bg2 {[%emt 0:00:30]} b5 {[%emt 0:01:30]} 11. e5 {[%emt 0:18:30]} Ba6 {[%emt 0:15:30]} 12. O-O {[%emt 0:38:30]} bxc4 {[%emt 0:21:30]} 13. dxc4 {[%emt 0:00:00]} Bxc4 {[%emt 0:12:30]} 14. Nxd4 {[%emt 0:01:00]} Nxd4 {[%emt 0:04:09]} 15. Qxd4 {[%emt 0:00:00]} Bxf1 {[%emt 0:01:11]} 16. Bxa8 {[%emt 0:02:26]} Qxa8 {[%emt 0:00:12]} 17. Kxf1 {[%emt 0:00:07]} Qc6 {[%emt 0:00:51]} 18. Kg1 {[%emt 0:01:53]} Bc5 {[%emt 0:07:35]} 19. Qg4 {[%emt 0:01:33]} Qb6 {[%emt 0:03:26]} 20. Qxg7 {[%emt 0:00:23]} Bxf2+ {[%emt 0:00:19]} 21. Kg2 {[%emt 0:00:33]} Rf8 {[%emt 0:01:23]} 22. Bh6 {[%emt 0:00:05]} Bc5 {[%emt 0:00:05]} 23. Rc1 {[%emt 0:00:20]} Qxb2+ {[%emt 0:00:43]} 24. Kh3 {[%emt 0:00:09]} Qe2 {[%emt 0:02:15]} 25. Qxf8+ {[%emt 0:00:16]} 1-0

[Event "28th CRO-chT 1B-Men 2019"]
[Site "Mali Losinj"]
[Date "2019.10.04"]
[Round "7.15"]
[White "Bilobrk, Franjo"]
[Black "Galic, Ivan"]
[Result "0-1"]
[ECO "D58"]
[WhiteElo "2334"]
[BlackElo "2414"]
[Annotator "NA"]
[PlyCount "76"]
[EventDate "2019.09.28"]
[EventType "team-tourn"]
[EventCountry "CRO"]
[SourceTitle "playchess.com"]
[Source "ChessBase"]
[SourceQuality "1"]
[TimeControl "40/5400+30:1800+30"]

1. d4 {[%emt 0:00:30]} Nf6 {[%emt 0:00:30]} 2. c4 {[%emt 0:00:00]} e6 {[%emt 0:00:00]} 3. Nf3 {[%emt 0:00:00]} d5 {[%emt 0:00:00]} 4. Bg5 {[%emt 0:00:00]} Be7 {[%emt 0:01:30]} 5. Nc3 {[%emt 0:03:00]} h6 {[%emt 0:00:00]} 6. Bh4 {[%emt 0:01:30]} O-O {[%emt 0:01:00]} 7. e3 {[%emt 0:00:00]} b6 {[%emt 0:04:30]} 8. Bd3 {[%emt 0:02:00]} Bb7 {[%emt 0:02:30]} 9. O-O {[%emt 0:01:30]} Nbd7 {[%emt 0:01:30]} 10. Qe2 {[%emt 0:01:30]} Ne4 {[%emt 0:08:30]} 11. Bg3 {[%emt 0:00:30]} c5 {[%emt 0:13:30]} 12. Rfd1 {[%emt 0:02:30]} cxd4 {[%emt 0:12:30]} 13. exd4 {[%emt 0:00:30]} Nxg3 {[%emt 0:01:30]} 14. hxg3 {[%emt 0:00:00]} dxc4 {[%emt 0:00:30]} 15. Bxc4 {[%emt 0:00:00]} Nf6 {[%emt 0:00:30]} 16. Ne5 {[%emt 0:07:30]} Bb4 {[%emt 0:08:30]} 17. Rac1 {[%emt 0:02:30]} Rc8 {[%emt 0:05:30]} 18. Bb3 {[%emt 0:02:30]} Qe7 {[%emt 0:05:30]} 19. Bc2 {[%emt 0:04:30]} Kh8 {[%emt 0:07:30]} 20. Bg6 {[%emt 0:04:30]} Kg8 {[%emt 0:04:30]} 21. Bb1 {[%emt 0:00:00]} Rfd8 {[%emt 0:00:53]} 22. Qe3 {[%emt 0:09:00]} Ba8 {[%emt 0:05:49]} 23. Kh2 {[%emt 0:04:30]} Qb7 {[%emt 0:01:49]} 24. f3 {[%emt 0:00:00]} Bf8 {[%emt 0:01:53]} 25. Ne4 {[%emt 0:05:00]} Nd5 {[%emt 0:00:37]} 26. Qd3 {[%emt 0:00:30]} g6 {[%emt 0:00:44]} 27. a3 {[%emt 0:01:30]} Bg7 {[%emt 0:00:40]} 28. Qe2 {[%emt 0:04:30]} Ne7 {[%emt 0:01:02]} 29. Nc3 {[%emt 0:01:30]} Qb8 {[%emt 0:01:01]} 30. f4 {[%emt 0:08:30]} Qb7 {[%emt 0:01:18]} 31. Be4 {[%emt 0:00:30]} Qb8 {[%emt 0:00:12]} 32. Bb1 {[%emt 0:00:00]} Qb7 {[%emt 0:01:32]} 33. Be4 {[%emt 0:00:00]} Qb8 {[%emt 0:00:43]} 34. Bb1 {[%emt 0:00:30]} Rc7 {[%emt 0:01:50]} 35. Ba2 {[%emt 0:03:30]} Nf5 {[%emt 0:01:25]} 36. Nxf7 {[%emt 0:02:30]} Rxf7 {[%emt 0:00:20]} 37. Qxe6 {[%emt 0:00:30]} Qb7 {[%emt 0:00:27]} 38. Qxg6 {[%emt 0:00:00]} Qxg2# {[%emt 0:00:04]} 0-1

[Event "28th CRO-chT 1B-Men 2019"]
[Site "Mali Losinj"]
[Date "2019.10.04"]
[Round "7.16"]
[White "Bender, Ivan"]
[Black "Biliskov, Vjekoslav"]
[Result "1/2-1/2"]
[ECO "D27"]
[WhiteElo "2234"]
[BlackElo "2333"]
[Annotator "NA"]
[PlyCount "50"]
[EventDate "2019.09.28"]
[EventType "team-tourn"]
[EventCountry "CRO"]
[SourceTitle "playchess.com"]
[Source "ChessBase"]
[SourceQuality "1"]
[TimeControl "40/5400+30:1800+30"]

1. e4 {[%emt 0:03:30]} c5 {[%emt 0:00:30]} 2. Nf3 {[%emt 0:00:00]} a6 {[%emt 0:00:30]} 3. c3 {[%emt 0:00:00]} d5 {[%emt 0:00:00]} 4. exd5 {[%emt 0:00:30]} Qxd5 {[%emt 0:00:00]} 5. d4 {[%emt 0:00:30]} Nf6 {[%emt 0:00:30]} 6. Be2 {[%emt 0:00:00]} e6 {[%emt 0:00:30]} 7. O-O {[%emt 0:00:00]} Nc6 {[%emt 0:00:30]} 8. Be3 {[%emt 0:00:30]} cxd4 {[%emt 0:00:00]} 9. cxd4 {[%emt 0:00:30]} Qd8 {[%emt 0:01:00]} 10. Nc3 {[%emt 0:04:30]} Bd6 {[%emt 0:00:30]} 11. Bg5 {[%emt 0:03:30]} Be7 {[%emt 0:01:30]} 12. Qd2 {[%emt 0:05:30]} O-O {[%emt 0:02:30]} 13. Rfd1 {[%emt 0:01:30]} Nd5 {[%emt 0:11:30]} 14. Nxd5 {[%emt 0:14:30]} exd5 {[%emt 0:00:30]} 15. Bxe7 {[%emt 0:05:30]} Qxe7 {[%emt 0:00:00]} 16. Re1 {[%emt 0:07:30]} Be6 {[%emt 0:07:00]} 17. a3 {[%emt 0:30:30]} Rac8 {[%emt 0:09:30]} 18. Rac1 {[%emt 0:07:13]} h6 {[%emt 0:12:30]} 19. Bf1 {[%emt 0:02:00]} Qd6 {[%emt 0:04:30]} 20. Bd3 {[%emt 0:06:22]} Rfe8 {[%emt 0:07:30]} 21. h3 {[%emt 0:00:38]} Bd7 {[%emt 0:04:30]} 22. Bb1 {[%emt 0:01:02]} Qf6 {[%emt 0:02:30]} 23. Rxe8+ {[%emt 0:03:42]} Rxe8 {[%emt 0:00:30]} 24. Rc3 {[%emt 0:00:23]} Bf5 {[%emt 0:04:30]} 25. Bxf5 {[%emt 0:00:14]} Qxf5 {[%emt 0:00:30]} 1/2-1/2

[Event "28th CRO-chT 1B-Men 2019"]
[Site "Mali Losinj"]
[Date "2019.10.04"]
[Round "7.17"]
[White "Sinanovic, Muhamed"]
[Black "Levacic, Patrick"]
[Result "1/2-1/2"]
[ECO "A25"]
[WhiteElo "2312"]
[BlackElo "2245"]
[Annotator "NA"]
[PlyCount "125"]
[EventDate "2019.09.28"]
[EventType "team-tourn"]
[EventCountry "CRO"]
[SourceTitle "playchess.com"]
[Source "ChessBase"]
[SourceQuality "1"]
[TimeControl "40/5400+30:1800+30"]

1. g3 {[%emt 0:00:30]} e5 {[%emt 0:03:30]} 2. c4 {[%emt 0:00:00]} Nc6 {[%emt 0:00:30]} 3. Bg2 {[%emt 0:00:00]} g6 {[%emt 0:01:30]} 4. Nc3 {[%emt 0:00:30]} Bg7 {[%emt 0:00:00]} 5. e3 {[%emt 0:00:30]} d6 {[%emt 0:01:00]} 6. Nge2 {[%emt 0:00:00]} Be6 {[%emt 0:02:30]} 7. d3 {[%emt 0:04:00]} Qd7 {[%emt 0:01:30]} 8. O-O {[%emt 0:05:30]} Nge7 {[%emt 0:05:30]} 9. Nd5 {[%emt 0:01:30]} O-O {[%emt 0:00:30]} 10. Bd2 {[%emt 0:07:30]} f5 {[%emt 0:03:30]} 11. f4 {[%emt 0:03:30]} Nd8 {[%emt 0:18:30]} 12. Bc3 {[%emt 0:04:30]} c6 {[%emt 0:03:30]} 13. Nxe7+ {[%emt 0:00:30]} Qxe7 {[%emt 0:00:00]} 14. b3 {[%emt 0:04:30]} Nf7 {[%emt 0:09:00]} 15. Qd2 {[%emt 0:00:30]} Rfe8 {[%emt 0:04:30]} 16. Rae1 {[%emt 0:09:30]} Rad8 {[%emt 0:10:30]} 17. e4 {[%emt 0:03:30]} fxe4 {[%emt 0:02:30]} 18. dxe4 {[%emt 0:00:30]} Qd7 {[%emt 0:00:30]} 19. Rd1 {[%emt 0:06:30]} Bh3 {[%emt 0:01:30]} 20. f5 {[%emt 0:00:30]} Bxg2 {[%emt 0:03:30]} 21. Kxg2 {[%emt 0:03:30]} gxf5 {[%emt 0:00:30]} 22. Rxf5 {[%emt 0:02:30]} Qe6 {[%emt 0:01:30]} 23. Qd3 {[%emt 0:08:30]} Re7 {[%emt 0:01:30]} 24. Bb4 {[%emt 0:02:30]} Red7 {[%emt 0:00:30]} 25. Nc3 {[%emt 0:00:00]} b6 {[%emt 0:04:43]} 26. a4 {[%emt 0:09:00]} Qg6 {[%emt 0:00:51]} 27. Ba3 {[%emt 0:03:30]} Ng5 {[%emt 0:00:40]} 28. b4 {[%emt 0:00:32]} Ne6 {[%emt 0:01:52]} 29. Bc1 {[%emt 0:05:54]} Nd4 {[%emt 0:03:27]} 30. Rg5 {[%emt 0:01:55]} Qe6 {[%emt 0:00:49]} 31. b5 {[%emt 0:01:36]} cxb5 {[%emt 0:01:09]} 32. axb5 {[%emt 0:00:09]} h6 {[%emt 0:00:10]} 33. Rf5 {[%emt 0:00:34]} Nxf5 {[%emt 0:01:27]} 34. exf5 {[%emt 0:00:06]} Qe8 {[%emt 0:00:20]} 35. Qe4 {[%emt 0:03:26]} Qh5 {[%emt 0:02:50]} 36. Rf1 {[%emt 0:00:23]} Rf8 {[%emt 0:01:00]} 37. Rf3 {[%emt 0:01:08]} Bf6 {[%emt 0:01:54]} 38. g4 {[%emt 0:00:24]} Rg7 {[%emt 0:00:34]} 39. h3 {[%emt 0:01:02]} Qh4 {[%emt 0:00:29]} 40. Be3 {[%emt 0:00:00]} h5 {[%emt 0:00:00]} 41. Rg3 {[%emt 0:08:51]} hxg4 {[%emt 0:02:15]} 42. Rxg4 {[%emt 0:03:30]} Qe1 {[%emt 0:17:30]} 43. Qd3 {[%emt 0:04:30]} Rff7 {[%emt 0:08:17]} 44. Bf2 {[%emt 0:03:30]} Qc1 {[%emt 0:01:00]} 45. Ne4 {[%emt 0:01:31]} Qf4 {[%emt 0:00:49]} 46. Qf3 {[%emt 0:07:02]} Qxf3+ {[%emt 0:03:14]} 47. Kxf3 {[%emt 0:00:02]} Be7 {[%emt 0:00:07]} 48. Ng3 {[%emt 0:00:17]} Kf8 {[%emt 0:00:33]} 49. Ke4 {[%emt 0:00:09]} Rh7 {[%emt 0:00:12]} 50. Kd5 {[%emt 0:04:09]} Rxh3 {[%emt 0:00:43]} 51. Rg6 {[%emt 0:02:17]} Bh4 {[%emt 0:02:51]} 52. Kxd6 {[%emt 0:03:51]} Bxg3 {[%emt 0:00:27]} 53. Bxg3 {[%emt 0:00:32]} Rxf5 {[%emt 0:00:09]} 54. Bxe5 {[%emt 0:00:09]} Ke8 {[%emt 0:02:30]} 55. Re6+ {[%emt 0:02:31]} Kd8 {[%emt 0:00:27]} 56. Bf6+ {[%emt 0:01:25]} Kc8 {[%emt 0:00:08]} 57. Re8+ {[%emt 0:00:29]} Kb7 {[%emt 0:00:09]} 58. Re7+ {[%emt 0:00:06]} Kb8 {[%emt 0:00:23]} 59. Re8+ {[%emt 0:00:32]} Kb7 {[%emt 0:00:05]} 60. Re7+ {[%emt 0:00:48]} Kb8 {[%emt 0:00:04]} 61. Re8+ {[%emt 0:01:59]} Kb7 {[%emt 0:00:36]} 62. Be5 {[%emt 0:00:30]} Rh4 {[%emt 0:00:39]} 63. Re7+ {[%emt 0:00:30]} 1/2-1/2